bitfinex/quotes_BTCUSD_20250303
["timestamp","ask_amount","ask_price","bid_price","bid_amount"]
[1741002763023,0.31681305,92914.0,92913.0,0.0073404]
[1741002763453,0.31681305,92914.0,92913.0,0.0003404]
[1741002763807,0.31681305,92914.0,92913.0,0.0043404]
[1741002765026,0.2999273,92914.0,92913.0,0.0043404]
[1741002765905,0.3733273,92914.0,92913.0,0.0043404]
[1741002768378,0.39021473,92914.0,92913.0,0.0043404]
[1741002773015,0.39038513,92914.0,92913.0,0.0043404]
[1741002773637,0.37929683,92914.0,92913.0,0.0043404]
[1741002774232,0.21785783,92914.0,92913.0,0.0043404]
[1741002774462,0.21785783,92914.0,92913.0,0.1657814]
[1741002774638,0.2009704,92914.0,92913.0,0.0043404]
[1741002774837,0.1275704,92914.0,92913.0,0.0043404]
[1741002775440,0.2890094,92914.0,92913.0,0.0043404]
[1741002776339,0.1275704,92914.0,92913.0,0.1657814]
[1741002776582,0.0799704,92914.0,92913.0,0.1657814]
[1741002779452,0.0799704,92914.0,92913.0,0.0043404]
[1741002780091,0.08147981,92914.0,92913.0,0.0043404]
[1741002780540,0.2414094,92914.0,92913.0,0.0043404]
[1741002781074,0.2898094,92914.0,92913.0,0.0043404]
[1741002781832,0.1283704,92914.0,92913.0,0.0043404]
[1741002781985,0.1283704,92914.0,92913.0,0.1657814]
[1741002782160,0.0001704,92914.0,92913.0,0.1627814]
[1741002783586,0.0001704,92914.0,92913.0,0.1617814]
[1741002783991,0.0011704,92914.0,92913.0,0.1617814]
[1741002784209,0.0021704,92914.0,92913.0,0.1617814]
[1741002784541,0.0011704,92914.0,92913.0,0.1617814]
[1741002784804,0.0001704,92914.0,92913.0,0.1617814]
[1741002784943,0.0001704,92914.0,92913.0,0.1647814]
[1741002785146,0.2930094,92914.0,92913.0,0.0033404]
[1741002785356,0.2930094,92914.0,92913.0,0.0043404]
[1741002786054,0.2930094,92914.0,92913.0,0.0013404]
[1741002787133,0.2930094,92914.0,92913.0,0.0003404]
[1741002787290,0.2930094,92914.0,92913.0,0.0013404]
[1741002787489,0.2930094,92914.0,92913.0,0.0033404]
[1741002787935,0.2940094,92914.0,92913.0,0.0003404]
[1741002790637,0.31089693,92914.0,92913.0,0.0003404]
[1741002791404,0.93499693,92914.0,92913.0,0.0003404]
[1741002794163,0.93599693,92914.0,92913.0,0.0003404]
[1741002794564,0.93699693,92914.0,92913.0,0.0003404]
[1741002795753,0.9201094,92914.0,92913.0,0.0003404]
[1741002796382,0.9201094,92914.0,92871.0,0.215351]
[1741002796383,0.048,92909.0,92860.0,0.047]
[1741002796588,0.3,92907.0,92859.0,0.0003406]
[1741002796787,0.3,92904.0,92859.0,0.0003406]
[1741002796995,0.215362,92867.0,92859.0,0.0003406]
[1741002797189,0.00150941,92866.0,92859.0,0.0003406]
[1741002797517,0.161533,92860.0,92859.0,0.0003406]
[1741002798527,0.161533,92860.0,92859.0,0.0124605]
[1741002798726,0.161533,92860.0,92859.0,0.0074605]
[1741002799892,0.161533,92860.0,92859.0,0.0004605]
[1741002800119,0.161533,92860.0,92859.0,0.0074605]
[1741002800120,0.162533,92860.0,92859.0,0.0074605]
[1741002800269,0.17942767,92860.0,92859.0,0.0074605]
[1741002800473,0.17842767,92860.0,92859.0,0.0004605]
[1741002800636,0.17842767,92860.0,92859.0,0.0074605]
[1741002800637,0.17942767,92860.0,92859.0,0.0074605]
[1741002800840,0.17993708,92860.0,92859.0,0.0044605]
[1741002801504,0.17993708,92860.0,92859.0,0.0064605]
[1741002801652,0.17842767,92860.0,92859.0,0.0064605]
[1741002803789,0.17993708,92860.0,92859.0,0.0064605]
[1741002811489,0.30763708,92860.0,92859.0,0.0064605]
[1741002811723,0.289233,92860.0,92859.0,0.0064605]
[1741002812020,0.161533,92860.0,92859.0,0.0064605]
[1741002812184,0.16304241,92860.0,92859.0,0.0064605]
[1741002812383,0.16304241,92860.0,92859.0,0.0024605]
[1741002812638,0.16304241,92860.0,92859.0,0.0004605]
[1741002812783,0.16304241,92860.0,92859.0,0.0024605]
[1741002813189,0.16304241,92860.0,92859.0,0.0004605]
[1741002813754,0.0734,92876.0,92859.0,0.0024605]
[1741002813901,0.16152,92868.0,92861.0,0.161531]
[1741002814131,0.00150941,92867.0,92861.0,0.161531]
[1741002814343,0.00150941,92867.0,92860.0,0.161533]
[1741002814546,0.0734,92876.0,92859.0,0.0024605]
[1741002814757,0.0734,92876.0,92869.0,0.161516]
[1741002814956,0.0734,92876.0,92859.0,0.0024605]
[1741002815185,0.01689512,92870.0,92867.0,0.161519]
[1741002815384,0.01689512,92870.0,92868.0,0.161518]
[1741002815581,0.01689512,92870.0,92859.0,0.0014605]
[1741002815789,0.01689512,92870.0,92865.0,0.161523]
[1741002816002,0.01689512,92870.0,92860.0,0.215377]
[1741002816149,0.003,92873.0,92872.0,0.161512]
[1741002816349,0.0734,92884.0,92876.0,0.161503]
[1741002816639,0.0826,92889.0,92863.0,0.0792]
[1741002816640,0.00150941,92883.0,92863.0,0.0792]
[1741002816920,0.07490941,92888.0,92864.0,0.01454085]
[1741002817418,0.07490941,92888.0,92863.0,0.09003156]
[1741002817419,0.161496,92882.0,92872.0,0.161511]
[1741002817642,0.00150941,92881.0,92875.0,0.161507]
[1741002817833,0.16299741,92886.0,92869.0,0.01454085]
[1741002818082,0.16299741,92886.0,92876.0,0.161504]
[1741002818276,0.16149,92885.0,92876.0,0.161504]
[1741002818483,0.00150941,92884.0,92876.0,0.161504]
[1741002818852,0.00150941,92884.0,92865.0,0.01454085]
[1741002819047,0.00150941,92887.0,92870.0,0.215354]
[1741002819251,0.07490941,92888.0,92869.0,0.001]
[1741002819678,0.07490941,92888.0,92876.0,0.003]
[1741002820156,0.07490941,92888.0,92872.0,0.215348]
[1741002820345,0.07490941,92888.0,92860.0,0.17832247]
[1741002820346,0.0001705,92886.0,92860.0,0.17832247]
[1741002820540,0.215326,92883.0,92876.0,0.001]
[1741002820751,0.161503,92877.0,92876.0,0.001]
[1741002820995,0.00150941,92882.0,92871.0,0.161513]
[1741002821164,0.161502,92878.0,92871.0,0.161513]
[1741002821369,0.00150941,92877.0,92871.0,0.161513]
[1741002821747,0.1615,92879.0,92871.0,0.161513]
[1741002821954,0.1615,92879.0,92876.0,0.003]
[1741002822113,0.16300941,92879.0,92871.0,0.161513]
[1741002822312,0.16300941,92879.0,92871.0,0.166513]
[1741002822516,0.0001705,92886.0,92885.0,0.16149]
[1741002824624,0.0001705,92886.0,92885.0,0.17603085]
[1741002825470,0.0001705,92886.0,92885.0,0.16149]
[1741002825872,0.0001705,92886.0,92885.0,0.16449]
[1741002826055,0.0001705,92886.0,92885.0,0.16349]
[1741002826551,0.0011705,92886.0,92885.0,0.16749]
[1741002826778,0.0011705,92886.0,92885.0,0.17449]
[1741002827117,0.0011705,92886.0,92885.0,0.18903085]
[1741002828541,0.01805863,92886.0,92885.0,0.18903085]
[1741002828944,0.01805863,92886.0,92885.0,0.17449]
[1741002830981,0.01805863,92886.0,92885.0,0.013]
[1741002831403,0.01956804,92886.0,92885.0,0.013]
[1741002831599,0.18105604,92886.0,92885.0,0.013]
[1741002832423,0.18105604,92886.0,92885.0,0.006]
[1741002832617,0.18005604,92886.0,92885.0,0.002]
[1741002833161,0.18005604,92886.0,92885.0,0.001]
[1741002833460,0.18005604,92886.0,92885.0,0.003]
[1741002834696,0.16316791,92886.0,92885.0,0.003]
[1741002835687,0.24476791,92886.0,92885.0,0.003]
[1741002835827,0.2432585,92886.0,92885.0,0.003]
[1741002839430,0.0817705,92886.0,92885.0,0.003]
[1741002839623,0.2432585,92886.0,92885.0,0.003]
[1741002839853,0.0001705,92886.0,92885.0,0.003]
[1741002840048,0.0001705,92886.0,92885.0,0.16449]
[1741002840449,0.0001705,92886.0,92885.0,0.003]
[1741002841167,0.28486791,92886.0,92885.0,0.003]
[1741002841311,0.2833585,92886.0,92885.0,0.003]
[1741002841889,0.6074585,92886.0,92885.0,0.003]
[1741002842536,0.6074585,92886.0,92885.0,0.001]
[1741002842761,0.161491,92884.0,92883.0,0.000341]
[1741002842962,0.24540041,92884.0,92883.0,0.000341]
[1741002843160,0.243891,92884.0,92883.0,0.000341]
[1741002844575,0.26078564,92884.0,92883.0,0.000341]
[1741002844741,0.60628564,92884.0,92883.0,0.000341]
[1741002845332,0.60728564,92884.0,92883.0,0.000341]
[1741002845680,0.589391,92884.0,92883.0,0.000341]
[1741002845884,0.590391,92884.0,92883.0,0.000341]
[1741002846287,0.589391,92884.0,92883.0,0.000341]
[1741002846583,0.599391,92884.0,92883.0,0.000341]
[1741002847709,0.599391,92884.0,92859.0,0.0004605]
[1741002847710,0.161533,92860.0,92859.0,0.0004605]
[1741002847910,0.240233,92860.0,92859.0,0.0004605]
[1741002848122,0.286833,92860.0,92859.0,0.0004605]
[1741002848723,0.29757347,92860.0,92859.0,0.0004605]
[1741002848923,0.29757347,92860.0,92859.0,0.0034605]
[1741002849074,0.31447046,92860.0,92859.0,0.0034605]
[1741002850246,0.31447046,92860.0,92859.0,0.0054605]
[1741002851916,0.17842999,92860.0,92859.0,0.0054605]
[1741002852122,0.1799394,92860.0,92859.0,0.0054605]
[1741002853280,0.17842999,92860.0,92859.0,0.0054605]
[1741002853491,0.0184064,92860.0,92859.0,0.1669955]
[1741002853694,0.01689699,92860.0,92859.0,0.0054605]
[1741002854092,0.01689699,92860.0,92859.0,0.1669955]
[1741002854786,0.161503,92878.0,92868.0,0.161519]
[1741002854993,0.161506,92876.0,92868.0,0.161519]
[1741002855211,0.161502,92878.0,92868.0,0.161519]
[1741002855389,0.292401,92893.0,92868.0,0.161519]
[1741002855588,0.161509,92874.0,92868.0,0.161519]
[1741002855795,0.07336,92887.0,92868.0,0.161519]
[1741002855983,0.161504,92877.0,92868.0,0.161519]
[1741002856181,0.161506,92876.0,92868.0,0.161519]
[1741002856418,0.161508,92875.0,92868.0,0.161519]
[1741002856641,0.161505,92876.0,92868.0,0.166519]
[1741002856863,0.161507,92875.0,92868.0,0.166519]
[1741002857795,0.215335,92879.0,92868.0,0.166519]
[1741002857995,0.485617,92869.0,92868.0,0.005]
[1741002858196,0.50251123,92869.0,92868.0,0.005]
[1741002858639,0.34099423,92869.0,92868.0,0.005]
[1741002858851,0.34099423,92869.0,92868.0,0.166519]
[1741002859816,0.01689423,92869.0,92868.0,0.166519]
[1741002860620,0.01689423,92869.0,92868.0,0.005]
[1741002861354,0.17841123,92869.0,92868.0,0.005]
[1741002862149,0.17992064,92869.0,92868.0,0.005]
[1741002862400,0.19053035,92869.0,92868.0,0.005]
[1741002863582,0.19053035,92869.0,92868.0,0.002]
[1741002863739,0.19253035,92869.0,92868.0,0.002]
[1741002864581,0.161533,92860.0,92859.0,0.0004605]
[1741002864941,0.16304241,92860.0,92859.0,0.0004605]
[1741002865832,0.16304241,92860.0,92859.0,0.0014605]
[1741002866283,0.3241,92865.0,92859.0,0.0014605]
[1741002866284,0.21537,92864.0,92859.0,0.0014605]
[1741002866486,0.3241,92865.0,92862.0,0.16153]
[1741002866643,0.3241,92865.0,92864.0,0.161526]
[1741002867900,0.3241,92865.0,92864.0,0.160526]
[1741002868538,0.3241,92865.0,92864.0,0.163526]
[1741002868933,0.34099361,92865.0,92864.0,0.163526]
[1741002869321,0.01689361,92865.0,92864.0,0.167526]
[1741002873200,0.01689361,92865.0,92864.0,0.007]
[1741002875321,0.161512,92872.0,92864.0,0.007]
[1741002875521,0.161513,92872.0,92864.0,0.007]
[1741002875723,0.00150941,92880.0,92864.0,0.007]
[1741002876050,0.215342,92876.0,92864.0,0.007]
[1741002876169,0.161515,92871.0,92864.0,0.003]
[1741002876368,0.00150941,92875.0,92864.0,0.005]
[1741002876572,0.21535,92873.0,92864.0,0.005]
[1741002876782,0.161514,92872.0,92864.0,0.005]
[1741002876997,0.288649,92881.0,92864.0,0.005]
[1741002877207,0.215333,92879.0,92864.0,0.005]
[1741002877402,0.00150941,92878.0,92864.0,0.005]
[1741002877639,0.215352,92871.0,92864.0,0.003]
[1741002877837,0.215352,92871.0,92863.0,0.01454085]
[1741002878072,0.07332,92881.0,92864.0,0.001]
[1741002878283,0.161524,92865.0,92864.0,0.001]
[1741002878456,0.00150941,92880.0,92859.0,0.0456605]
[1741002878682,0.161521,92868.0,92860.0,0.01454085]
[1741002878862,0.215356,92870.0,92860.0,0.01454085]
[1741002879069,0.216336,92878.0,92860.0,0.01454085]
[1741002879314,0.215348,92873.0,92860.0,0.01454085]
[1741002879476,0.161519,92868.0,92864.0,0.004]
[1741002879936,0.01689374,92870.0,92864.0,0.004]
[1741002880163,0.16152,92868.0,92864.0,0.004]
[1741002880381,0.01689374,92870.0,92864.0,0.004341]
[1741002880825,0.0001705,92865.0,92864.0,0.004341]
[1741002881506,0.0001705,92865.0,92864.0,0.002341]
[1741002881717,0.0001705,92865.0,92864.0,0.000341]
[1741002881975,0.1616945,92865.0,92864.0,0.000341]
[1741002882251,0.22198086,92865.0,92864.0,0.003341]
[1741002882448,0.17263589,92865.0,92864.0,0.003341]
[1741002882663,0.1741453,92865.0,92864.0,0.003341]
[1741002883069,0.1741453,92865.0,92864.0,0.007341]
[1741002883578,0.1741453,92865.0,92864.0,0.003341]
[1741002884972,0.2572453,92865.0,92864.0,0.000341]
[1741002885181,0.25673589,92865.0,92864.0,0.000341]
[1741002885379,0.25773589,92865.0,92864.0,0.000341]
[1741002885763,0.25973589,92865.0,92864.0,0.000341]
[1741002886437,0.25973589,92865.0,92848.0,0.0003402]
[1741002886438,0.161552,92849.0,92848.0,0.0001417]
[1741002886649,0.161552,92849.0,92848.0,0.00026175]
[1741002886850,0.16306141,92849.0,92848.0,0.00026175]
[1741002887180,0.234863,92855.0,92848.0,0.00026175]
[1741002887367,0.00150941,92854.0,92848.0,0.00026175]
[1741002887943,0.161552,92849.0,92848.0,0.00026175]
[1741002888150,0.16306141,92849.0,92848.0,0.00226175]
[1741002888460,0.16306141,92849.0,92848.0,0.00026175]
[1741002888665,0.16306141,92849.0,92848.0,0.00426175]
[1741002889044,0.16306141,92849.0,92848.0,0.00326175]
[1741002889430,0.16306141,92849.0,92848.0,0.00626175]
[1741002890295,0.17995878,92849.0,92848.0,0.00626175]
[1741002894167,0.25825878,92849.0,92848.0,0.00626175]
[1741002894364,0.25674937,92849.0,92848.0,0.00626175]
[1741002895846,0.239852,92849.0,92848.0,0.00626175]
[1741002898831,0.2567504,92849.0,92848.0,0.00626175]
[1741002904414,0.5025504,92849.0,92848.0,0.00626175]
[1741002904851,0.485652,92849.0,92848.0,0.00626175]
[1741002909393,0.50255034,92849.0,92848.0,0.00626175]
[1741002910192,0.17845034,92849.0,92848.0,0.00626175]
[1741002910366,0.17995975,92849.0,92848.0,0.00626175]
[1741002915818,0.16306141,92849.0,92848.0,0.00626175]
[1741002916269,0.48716141,92849.0,92848.0,0.00626175]
[1741002916476,0.485652,92849.0,92848.0,0.00626175]
[1741002917429,0.485652,92849.0,92848.0,0.00326175]
[1741002918925,0.485652,92849.0,92848.0,0.00026175]
[1741002920463,0.50255096,92849.0,92848.0,0.00026175]
[1741002922920,0.50355096,92849.0,92848.0,0.00026175]
[1741002923325,0.50455096,92849.0,92848.0,0.00026175]
[1741002925644,0.487652,92849.0,92848.0,0.00026175]
[1741002930224,0.50455124,92849.0,92848.0,0.00026175]
[1741002935838,0.487652,92849.0,92848.0,0.00026175]
[1741002938699,0.3429977,92849.0,92848.0,0.00026175]
[1741002939104,0.3409977,92849.0,92848.0,0.00026175]
[1741002939305,0.3409977,92849.0,92848.0,0.16181575]
[1741002939512,0.3409977,92849.0,92848.0,0.16481575]
[1741002939922,0.0168977,92849.0,92848.0,0.16481575]
[1741002940663,0.0168977,92849.0,92848.0,0.16181575]
[1741002940975,0.0168977,92849.0,92848.0,0.16481575]
[1741002941204,0.0168977,92849.0,92848.0,0.16781575]
[1741002941489,0.0168977,92849.0,92848.0,0.16981575]
[1741002941860,0.0168977,92849.0,92848.0,0.17581575]
[1741002943143,0.0168977,92849.0,92848.0,0.25821575]
[1741002945679,0.0003408,92859.0,92848.0,0.09666175]
[1741002945883,0.0003408,92859.0,92858.0,0.161536]
[1741002946790,0.0003408,92859.0,92858.0,0.22327685]
[1741002947216,0.0003408,92859.0,92858.0,0.22527685]
[1741002948217,0.0003408,92859.0,92858.0,0.002]
[1741002948218,0.1618758,92859.0,92858.0,0.002]
[1741002948657,0.16338521,92859.0,92858.0,0.002]
[1741002948961,0.18028121,92859.0,92858.0,0.002]
[1741002949865,0.18028121,92859.0,92858.0,0.005]
[1741002950125,0.0172368,92859.0,92858.0,0.005]
[1741002951724,0.1787718,92859.0,92858.0,0.005]
[1741002952284,0.0172368,92859.0,92858.0,0.005]
[1741002952594,0.0172368,92859.0,92858.0,0.0051704]
[1741002953613,0.1787718,92859.0,92858.0,0.0051704]
[1741002954903,0.0172368,92859.0,92858.0,0.0051704]
[1741002955309,0.1787718,92859.0,92858.0,0.0051704]
[1741002955736,0.1618758,92859.0,92858.0,0.0051704]
[1741002956523,0.0003408,92859.0,92858.0,0.0051704]
[1741002956926,0.1618758,92859.0,92858.0,0.0051704]
[1741002957148,0.16338521,92859.0,92858.0,0.0051704]
[1741002963004,0.18028115,92859.0,92858.0,0.0051704]
[1741002965497,0.01723674,92859.0,92858.0,0.0051704]
[1741002965699,0.01723674,92859.0,92858.0,0.1667064]
[1741002965916,0.0003408,92859.0,92858.0,0.1667064]
[1741002968929,0.0003408,92859.0,92858.0,0.0051704]
[1741002969234,0.01723598,92859.0,92858.0,0.0051704]
[1741002969447,0.01723598,92859.0,92858.0,0.1667064]
[1741002970344,0.01723598,92859.0,92858.0,0.0051704]
[1741002971447,0.17877098,92859.0,92858.0,0.0051704]
[1741002971972,0.18028039,92859.0,92858.0,0.0051704]
[1741002975809,0.16338521,92859.0,92858.0,0.0051704]
[1741002977936,0.48748521,92859.0,92858.0,0.0051704]
[1741002978139,0.5621758,92859.0,92858.0,0.0051704]
[1741002978971,0.57907347,92859.0,92858.0,0.0051704]
[1741002979607,0.57907347,92859.0,92858.0,0.0021704]
[1741002980315,0.57907347,92859.0,92858.0,0.0001704]
[1741002980881,0.58107347,92859.0,92858.0,0.0001704]
[1741002981075,0.57907347,92859.0,92858.0,0.0001704]
[1741002981399,0.58207347,92859.0,92858.0,0.0001704]
[1741002982600,0.58507347,92859.0,92858.0,0.0001704]
[1741002984339,0.59308332,92859.0,92858.0,0.0001704]
[1741002984689,0.57618565,92859.0,92858.0,0.0001704]
[1741002987958,0.59308375,92859.0,92858.0,0.0001704]
[1741002988865,0.5088739,92859.0,92858.0,0.0001704]
[1741002989067,0.3473389,92859.0,92858.0,0.0001704]
[1741002989245,0.5088739,92859.0,92858.0,0.0001704]
[1741002989631,0.5058739,92859.0,92858.0,0.0001704]
[1741002990059,0.5078739,92859.0,92858.0,0.0001704]
[1741002990959,0.5048739,92859.0,92858.0,0.0001704]
[1741002991537,0.5028739,92859.0,92858.0,0.0011704]
[1741002991735,0.5028739,92859.0,92858.0,0.0021704]
[1741002995842,0.4859758,92859.0,92858.0,0.0021704]
[1741002999142,0.50287253,92859.0,92858.0,0.0021704]
[1741003005690,0.4859758,92859.0,92858.0,0.0021704]
[1741003008844,0.50287288,92859.0,92858.0,0.0021704]
[1741003015849,0.4859758,92859.0,92858.0,0.0021704]
[1741003019211,0.50287278,92859.0,92858.0,0.0021704]
[1741003024525,0.4859758,92859.0,92858.0,0.0021704]
[1741003026782,0.0003408,92859.0,92858.0,0.1637064]
[1741003026988,0.0003408,92859.0,92858.0,0.22644725]
[1741003027138,0.0003408,92859.0,92858.0,0.31857334]
[1741003028060,0.0003408,92859.0,92858.0,0.61757334]
[1741003028225,0.0003408,92859.0,92858.0,0.94967334]
[1741003028625,0.0003408,92859.0,92858.0,0.94867334]
[1741003028828,8e-07,92859.0,92858.0,0.94367334]
[1741003029028,8e-07,92859.0,92858.0,0.95067334]
[1741003029233,0.0010008,92859.0,92858.0,0.95767334]
[1741003029436,8e-07,92859.0,92858.0,0.95067334]
[1741003029835,0.0010008,92859.0,92858.0,0.95767334]
[1741003030572,0.0010008,92859.0,92858.0,0.95067334]
[1741003030757,0.0010008,92859.0,92858.0,0.95767334]
[1741003034867,0.0010008,92859.0,92858.0,0.95067334]
[1741003035232,0.01689094,92879.0,92878.0,0.507102]
[1741003035381,0.0001704,92914.0,92882.0,0.47503585]
[1741003035587,0.0001704,92914.0,92882.0,0.80213585]
[1741003035782,0.0001704,92914.0,92882.0,0.87813585]
[1741003036609,0.0001704,92914.0,92882.0,0.88213585]
[1741003037618,0.0001704,92914.0,92882.0,0.91082066]
[1741003037803,0.0001704,92914.0,92882.0,0.90682066]
[1741003038003,0.0001704,92914.0,92882.0,0.91486903]
[1741003038208,0.1616104,92914.0,92882.0,0.92186903]
[1741003038411,0.0001704,92914.0,92882.0,0.92186903]
[1741003038653,0.01688739,92903.0,92882.0,0.92186903]
[1741003039094,5e-07,92886.0,92885.0,0.58699]
[1741003039233,0.0001704,92914.0,92913.0,0.47598185]
[1741003039448,0.00029038,92914.0,92913.0,0.47598185]
[1741003041393,0.00029038,92914.0,92913.0,0.49397549]
[1741003042819,0.00029038,92914.0,92913.0,0.50097549]
[1741003049775,3.8e-07,92914.0,92913.0,0.50097549]
[1741003050543,3.8e-07,92914.0,92913.0,0.50529149]
[1741003050749,3.8e-07,92914.0,92913.0,0.49829149]
[1741003051282,3.8e-07,92914.0,92913.0,0.50529149]
[1741003051550,3.8e-07,92914.0,92913.0,0.49829149]
[1741003051962,3.8e-07,92914.0,92913.0,0.50529149]
[1741003052553,3.8e-07,92914.0,92913.0,0.61899149]
[1741003052746,3.8e-07,92914.0,92913.0,0.50529149]
[1741003053067,3.8e-07,92914.0,92913.0,0.54530772]
[1741003055341,0.00017068,92914.0,92913.0,0.54530772]
[1741003055760,0.00017068,92914.0,92913.0,0.87240772]
[1741003056775,0.000341,92952.0,92924.0,0.461422]
[1741003057002,0.00061041,92925.0,92924.0,0.47596285]
[1741003057903,0.00061041,92925.0,92924.0,0.56546285]
[1741003057904,4.1e-07,92925.0,92924.0,0.56546285]
[1741003058310,4.1e-07,92925.0,92924.0,0.57246285]
[1741003058868,0.000341,92952.0,92941.0,0.161392]
[1741003058991,0.00029033,92942.0,92941.0,0.17593285]
[1741003060111,0.00029033,92942.0,92941.0,0.18093285]
[1741003060756,0.00029033,92942.0,92941.0,0.17593285]
[1741003060909,0.00029033,92942.0,92941.0,0.22294908]
[1741003061625,0.00029033,92942.0,92941.0,0.22694908]
[1741003062005,0.00029033,92942.0,92941.0,0.22294908]
[1741003062228,0.00029033,92942.0,92941.0,0.22894908]
[1741003066407,0.00029033,92942.0,92941.0,0.18893285]
[1741003066609,3.3e-07,92942.0,92941.0,0.90452074]
[1741003066815,0.000341,92952.0,92951.0,0.17591585]
[1741003066968,0.000341,92952.0,92951.0,0.17742159]
[1741003067361,0.000341,92952.0,92951.0,0.17591585]
[1741003068968,0.000341,92952.0,92951.0,0.21045571]
[1741003069169,0.000341,92952.0,92951.0,0.18891585]
[1741003070071,0.000341,92952.0,92951.0,0.174375]
[1741003070475,0.000341,92952.0,92951.0,0.013]
[1741003070722,0.161714,92952.0,92951.0,0.013]
[1741003071706,0.239914,92952.0,92951.0,0.013]
[1741003072433,0.078541,92952.0,92951.0,0.006]
[1741003072643,0.239914,92952.0,92951.0,0.006]
[1741003072814,0.239914,92952.0,92951.0,0.005]
[1741003073180,0.239914,92952.0,92951.0,0.01]
[1741003073357,0.239914,92952.0,92951.0,0.005]
[1741003073515,0.239914,92952.0,92951.0,0.012]
[1741003077261,0.25053035,92952.0,92951.0,0.012]
[1741003077659,0.239914,92952.0,92951.0,0.012]
[1741003078232,0.239914,92952.0,92951.0,0.007]
[1741003078381,0.239914,92952.0,92951.0,0.008]
[1741003078586,0.239914,92952.0,92951.0,0.001]
[1741003078813,0.239914,92952.0,92951.0,0.003]
[1741003078814,0.078541,92952.0,92951.0,0.003]
[1741003079013,0.078541,92952.0,92951.0,0.164375]
[1741003079224,0.078541,92952.0,92951.0,0.003]
[1741003079443,0.239914,92952.0,92951.0,0.003]
[1741003080955,0.078541,92952.0,92951.0,0.003]
[1741003081516,0.078541,92952.0,92951.0,0.164375]
[1741003082469,0.078541,92952.0,92951.0,0.162375]
[1741003082879,0.078541,92952.0,92951.0,0.166375]
[1741003083083,0.078541,92952.0,92951.0,0.169375]
[1741003083383,0.000341,92952.0,92951.0,0.169375]
[1741003084562,0.000341,92952.0,92951.0,0.164375]
[1741003084968,0.000341,92952.0,92951.0,0.169375]
[1741003085165,0.000341,92952.0,92951.0,0.005]
[1741003085369,0.000341,92952.0,92938.0,0.215195]
[1741003085579,0.000341,92952.0,92951.0,0.01]
[1741003085815,0.000341,92952.0,92951.0,0.171375]
[1741003086343,0.000341,92952.0,92934.0,0.215206]
[1741003086618,0.000341,92952.0,92942.0,0.0043404]
[1741003086619,0.237589,92943.0,92942.0,0.0043404]
[1741003086961,0.283089,92943.0,92942.0,0.0003404]
[1741003088127,0.283089,92943.0,92942.0,0.0063404]
[1741003088687,0.283089,92943.0,92942.0,0.0003404]
[1741003089098,0.29996926,92943.0,92942.0,0.0133404]
[1741003089394,0.01688026,92943.0,92942.0,0.1747304]
[1741003091001,0.01688026,92943.0,92942.0,0.18927125]
[1741003094541,0.01688026,92943.0,92942.0,0.48227125]
[1741003094961,0.01688026,92943.0,92942.0,0.48927125]
[1741003095462,0.000341,92952.0,92951.0,0.161375]
[1741003096306,0.000341,92952.0,92951.0,0.17591585]
[1741003096735,0.000341,92952.0,92951.0,0.18191585]
[1741003097803,0.000341,92952.0,92951.0,0.18891585]
[1741003098970,0.000341,92952.0,92951.0,0.174375]
[1741003099305,0.000341,92952.0,92951.0,0.4904219]
[1741003099629,0.000341,92952.0,92951.0,0.48891585]
[1741003101950,0.000341,92952.0,92951.0,0.18891585]
[1741003102377,0.000341,92952.0,92951.0,0.02754085]
[1741003102760,0.000341,92952.0,92951.0,0.18891585]
[1741003103775,0.000381,92952.0,92951.0,0.18891585]
[1741003104199,0.000381,92952.0,92951.0,0.174375]
[1741003104570,0.161754,92952.0,92951.0,0.013]
[1741003105887,0.244154,92952.0,92951.0,0.013]
[1741003106340,0.130681,92952.0,92942.0,0.0003404]
[1741003106472,0.161389,92943.0,92942.0,0.0003404]
[1741003107074,0.16289841,92943.0,92942.0,0.0003404]
[1741003107274,0.24229841,92943.0,92942.0,0.0003404]
[1741003107621,0.288389,92943.0,92942.0,0.0023404]
[1741003107865,0.288389,92943.0,92942.0,0.0053404]
[1741003108038,0.288389,92943.0,92942.0,0.0033404]
[1741003108197,0.288389,92943.0,92942.0,0.0083404]
[1741003109021,0.288389,92943.0,92942.0,0.0053404]
[1741003109579,0.6610656,92934.0,92928.0,0.161414]
[1741003109752,0.4996596,92934.0,92928.0,0.16153393]
[1741003109956,0.161407,92933.0,92928.0,0.16153393]
[1741003110157,0.00150941,92932.0,92928.0,0.00011993]
[1741003110735,0.16291841,92932.0,92928.0,0.16753493]
[1741003110974,0.01839127,92932.0,92928.0,0.16753493]
[1741003111155,0.01688186,92932.0,92929.0,0.161413]
[1741003111352,0.01688186,92932.0,92931.0,0.16141]
[1741003113138,0.01688186,92932.0,92931.0,0.16541]
[1741003113621,0.01688186,92932.0,92931.0,0.17141]
[1741003113793,0.01688186,92932.0,92931.0,0.1717504]
[1741003114558,0.4996596,92934.0,92933.0,0.161406]
[1741003116051,0.4996596,92934.0,92933.0,0.170406]
[1741003116609,0.4996596,92934.0,92933.0,0.18494685]
[1741003117437,0.4996596,92934.0,92933.0,0.17994685]
[1741003117641,0.4996596,92934.0,92933.0,0.18594685]
[1741003118793,0.4996596,92934.0,92933.0,0.18194685]
[1741003119106,0.4996596,92934.0,92933.0,0.18594685]
[1741003124723,0.51653983,92934.0,92933.0,0.18594685]
[1741003125770,0.4996596,92934.0,92933.0,0.18594685]
[1741003129023,0.51653938,92934.0,92933.0,0.18594685]
[1741003132027,0.4996596,92934.0,92933.0,0.53414685]
[1741003132603,0.4996596,92934.0,92933.0,0.52814685]
[1741003132830,0.4996596,92934.0,92933.0,0.52414685]
[1741003132986,0.4996596,92934.0,92933.0,0.53014685]
[1741003133184,0.4996596,92934.0,92933.0,0.55608029]
[1741003133442,0.4996596,92934.0,92933.0,0.54608029]
[1741003133785,0.4996596,92934.0,92933.0,0.56008029]
[1741003134189,0.4996596,92934.0,92933.0,0.48994685]
[1741003134620,0.51653841,92934.0,92933.0,0.48994685]
[1741003135428,0.51653841,92934.0,92933.0,0.47594685]
[1741003135633,0.51653841,92934.0,92933.0,0.48994685]
[1741003135954,0.4996596,92934.0,92933.0,0.48294685]
[1741003136254,0.4996596,92934.0,92933.0,0.02854085]
[1741003136754,0.4996596,92934.0,92933.0,0.18294685]
[1741003137102,0.4996596,92934.0,92933.0,0.18994685]
[1741003137303,0.4996596,92934.0,92933.0,0.19028725]
[1741003137498,0.4996596,92934.0,92933.0,0.23968725]